bitfinex-derivatives/quotes_BNBF0:USTF0_20250603
["timestamp","ask_amount","ask_price","bid_price","bid_amount"]
[1748956075654,0.56193886,665.98,664.52,2.07757295]
[1748956075853,0.56193886,665.98,664.53,2.07757295]
[1748956076053,0.56193886,665.98,664.54,2.07757295]
[1748956076267,0.56193886,665.98,664.55,0.95955937]
[1748956076637,0.56193886,665.98,664.3,0.30106879]
[1748956076836,0.56193886,665.98,664.31,3.22129799]
[1748956077016,0.56193886,665.98,664.32,2.08157439]
[1748956077154,0.56193886,665.98,664.32,2.09928433]
[1748956077350,0.56193886,665.98,664.33,1.12201201]
[1748956077551,0.56193886,665.98,664.34,1.12201201]
[1748956077757,0.56193886,665.98,664.35,2.26174036]
[1748956077957,0.56193886,665.98,664.36,1.12201201]
[1748956078251,0.56193886,665.98,664.37,3.22128824]
[1748956078465,0.56193886,665.98,664.38,1.12201201]
[1748956078657,0.56193886,665.98,664.39,1.12201201]
[1748956078857,0.56193886,665.98,664.4,1.12201201]
[1748956079053,0.56193886,665.98,664.41,2.08156921]
[1748956079359,0.56193886,665.98,665.84,0.47778858]
[1748956079657,0.56193886,665.98,664.32,1.13972383]
[1748956079851,0.56193886,665.98,664.33,1.42756555]
[1748956080053,0.56193886,665.98,664.32,1.13972383]
[1748956080054,0.56193886,665.98,664.34,1.42756102]
[1748956080252,0.56193886,665.98,664.35,1.42755649]
[1748956080557,0.56193886,665.98,664.36,1.42755196]
[1748956080756,0.56193886,665.98,664.37,1.13104027]
[1748956080959,0.30030931,665.98,664.52,0.30096912]
[1748956081254,0.30030931,665.98,664.53,1.13104027]
[1748956081449,0.30030931,665.98,664.32,1.13972383]
[1748956081450,0.30030931,665.98,664.54,2.56848598]
[1748956081657,0.30030931,665.98,664.55,1.4319958]
[1748956081855,0.30030931,665.98,664.56,2.56839836]
[1748956082056,0.30030931,665.98,664.57,1.43198674]
[1748956082259,0.30030931,665.98,664.58,1.43198221]
[1748956082453,0.30030931,665.98,664.59,2.56838148]
[1748956082653,0.30030931,665.98,664.6,1.43197316]
[1748956082854,0.30030931,665.98,664.61,1.43196863]
[1748956083058,0.30030931,665.98,664.62,1.13104027]
[1748956083254,0.30030931,665.98,664.63,1.43195957]
[1748956083454,0.30030931,665.98,664.64,1.43195505]
[1748956083654,0.30030931,665.98,664.36,1.11686625]
[1748956083655,0.30030931,665.98,664.65,0.30091025]
[1748956083858,0.30030931,665.98,664.66,1.13592028]
[1748956084054,0.30030931,665.98,664.67,1.13592028]
[1748956084259,0.30030931,665.98,664.68,1.13592028]
[1748956084457,0.30030931,665.98,664.66,0.30090572]
[1748956084458,0.30030931,665.98,664.69,1.13592028]
[1748956084659,0.30030931,665.98,664.7,1.13592028]
[1748956084853,0.30030931,665.98,664.71,1.13592028]
[1748956085053,0.30030931,665.98,664.72,1.13592028]
[1748956085258,0.30030931,665.98,664.73,1.13592028]
[1748956085456,0.30030931,665.98,664.74,1.13592028]
[1748956085659,0.30030931,665.98,664.75,1.13592028]
[1748956085859,0.30030931,665.98,664.76,1.13592028]
[1748956086060,0.30030931,665.98,664.77,1.13592028]
[1748956086260,0.30030931,665.98,664.78,1.13592028]
[1748956086460,0.30030931,665.98,664.66,0.30090572]
[1748956087363,0.30030931,665.98,664.67,1.13552284]
[1748956087561,0.30030931,665.98,664.68,1.13552284]
[1748956087762,0.30030931,665.98,664.69,1.13552284]
[1748956087962,0.30030931,665.98,664.7,1.13534555]
[1748956088261,0.30030931,665.98,664.71,1.13534555]
[1748956088463,0.30030931,665.98,664.72,1.13534555]
[1748956088765,0.30030931,665.98,664.73,1.13534555]
[1748956088966,0.30030931,665.98,664.74,1.13534555]
[1748956089163,0.30030931,665.98,664.75,1.13534555]
[1748956089358,0.30030931,665.98,664.76,1.13534555]
[1748956089561,0.30030931,665.98,664.67,0.30090119]
[1748956089859,0.30030931,665.98,664.68,1.13482573]
[1748956090062,0.30030931,665.98,664.69,1.13482573]
[1748956090259,0.30030931,665.98,664.7,1.13482573]
[1748956090457,0.30030931,665.98,664.71,1.13482573]
[1748956090658,0.30030931,665.98,664.72,1.13482573]
[1748956090858,0.30030931,665.98,664.73,1.13482573]
[1748956091062,0.30030931,665.98,664.67,0.30090119]
[1748956091259,0.30030931,665.98,664.68,1.13469885]
[1748956091565,0.30030931,665.98,664.69,1.13469885]
[1748956091760,0.30030931,665.98,664.7,1.13469885]
[1748956091958,0.30030931,665.98,664.67,0.30090119]
[1748956092260,0.30030931,665.98,664.68,1.13461006]
[1748956092563,0.30030931,665.98,664.69,1.13461006]
[1748956092760,0.30030931,665.98,664.7,1.13461006]
[1748956092970,0.30030931,665.98,664.71,1.13461006]
[1748956093162,0.30030931,665.98,664.72,1.13461006]
[1748956093464,0.30030931,665.98,664.67,0.30090119]
[1748956093664,0.30030931,665.98,664.68,1.13445187]
[1748956093871,0.30030931,665.98,664.69,1.13445187]
[1748956094064,0.30030931,665.98,664.67,0.30090119]
[1748956094065,0.30030931,665.98,664.7,1.13445187]
[1748956094266,0.30030931,665.98,664.71,1.13445187]
[1748956094466,0.30030931,665.98,664.67,0.30090119]
[1748956094667,0.30030931,665.98,664.68,1.13420075]
[1748956094867,0.30030931,665.98,664.67,0.30090119]
[1748956094868,0.30030931,665.98,664.69,1.13420075]
[1748956095070,0.30030931,665.98,664.7,1.13420075]
[1748956095262,0.30030931,665.98,664.71,1.13420075]
[1748956095463,0.30030931,665.98,664.67,0.30090119]
[1748956095666,0.30030931,665.98,664.68,1.1341412]
[1748956095970,0.30030931,665.98,664.69,1.1341412]
[1748956096169,3.7455765,665.97,664.7,1.13415285]
[1748956096469,3.7455765,665.97,664.67,0.30090119]
[1748956096672,0.30030931,665.98,664.68,1.13413111]
[1748956096673,3.7455765,665.96,664.68,1.13413111]
[1748956096868,3.7455765,665.96,664.69,1.13413111]
[1748956097170,3.7455765,665.96,664.7,1.13413111]
[1748956097361,3.7455765,665.96,664.67,0.30090119]
[1748956097567,3.7455765,665.91,664.67,0.30090119]
[1748956099369,0.30030931,665.98,664.67,0.30090119]
[1748956108280,3.7455765,665.88,664.67,0.30090119]
[1748956108479,0.30035892,665.87,664.67,0.30090119]
[1748956109081,3.7455765,665.85,664.67,0.30090119]
[1748956109277,0.30037246,665.84,664.67,0.30090119]
[1748956111086,4.04594896,665.84,664.67,0.30090119]
[1748956111487,3.7455765,665.79,664.67,0.30090119]
[1748956111987,3.7455765,665.78,664.67,0.30090119]
[1748956113488,3.7455765,665.79,664.67,0.30090119]
[1748956115894,0.30039953,665.78,664.32,1.13972383]
[1748956116096,0.30039953,665.78,664.33,2.25287109]
[1748956116284,0.30039953,665.78,664.34,1.13307978]
[1748956116489,0.30039953,665.78,664.35,1.13307978]
[1748956116791,0.30039953,665.78,664.36,2.2528434]
[1748956116987,0.30039953,665.78,664.37,1.13307978]
[1748956117187,0.30039953,665.78,664.38,1.13307978]
[1748956117392,0.30039953,665.78,664.39,2.25290227]
[1748956117591,0.30039953,665.78,664.4,1.13307978]
[1748956117791,0.30039953,665.78,664.41,1.13307978]
[1748956117988,0.30039953,665.78,664.42,1.13307978]
[1748956118189,0.30039953,665.78,664.43,1.13307978]
[1748956118387,0.30039953,665.78,664.44,1.13307978]
[1748956118592,0.30039953,665.78,664.36,1.11976362]
[1748956118792,0.30039953,665.78,664.37,1.13293707]
[1748956118994,0.30039953,665.78,664.38,1.13293707]
[1748956119199,0.30039953,665.78,664.39,1.13293707]
[1748956119388,0.30039953,665.78,664.36,1.11976362]
[1748956119593,0.30039953,665.78,664.37,1.13312056]
[1748956119793,0.30039953,665.78,664.38,1.13312056]
[1748956120093,0.30039953,665.78,664.39,1.13312056]
[1748956120294,0.30039953,665.78,664.36,1.11976362]
[1748956120490,0.30039953,665.78,664.37,1.13306283]
[1748956120690,0.30039953,665.78,664.38,1.13306283]
[1748956120894,0.30039953,665.78,664.39,1.13306283]
[1748956121090,0.30039953,665.78,664.4,1.13306283]
[1748956121296,0.30039953,665.78,664.36,1.11976362]
[1748956121596,0.30039953,665.78,664.37,1.13286953]
[1748956121796,0.30039953,665.78,664.38,1.13286953]
[1748956121996,0.30039953,665.78,664.39,1.132849]
[1748956122198,0.30039953,665.78,664.4,1.13278078]
[1748956122395,0.30039953,665.78,664.36,1.11976362]
[1748956122594,0.30039953,665.78,664.37,1.1327402]
[1748956122797,0.30039953,665.78,664.38,1.1327402]
[1748956122993,0.30039953,665.78,664.39,1.1327402]
[1748956123193,0.30039953,665.78,664.4,1.1327402]
[1748956123392,0.30039953,665.78,664.36,1.11976362]
[1748956123596,0.30039953,665.78,664.37,1.13270611]
[1748956123894,0.30039953,665.78,664.38,1.13270611]
[1748956124094,0.30039953,665.78,664.39,1.13270611]
[1748956124399,0.30039953,665.78,664.4,1.13270611]
[1748956124595,0.30039953,665.78,664.36,1.11976362]
[1748956124794,0.30039953,665.78,664.37,1.13178896]
[1748956124996,0.30039953,665.78,664.38,1.13178896]
[1748956125194,0.30039953,665.78,664.39,1.13178896]
[1748956125395,0.30039953,665.78,664.4,1.13178896]
[1748956125597,0.30039953,665.78,664.36,1.11976362]
[1748956125793,0.30039953,665.78,664.37,1.13175082]
[1748956125997,0.30039953,665.78,664.38,1.13175082]
[1748956126198,0.30039953,665.78,664.39,1.13175082]
[1748956126398,0.30039953,665.78,664.4,1.13175082]
[1748956126596,0.30039953,665.78,664.36,1.11976362]
[1748956126796,0.30039953,665.78,664.37,1.13184335]
[1748956127000,0.30039953,665.78,664.38,1.13184335]
[1748956127197,0.30039953,665.78,664.39,1.13184335]
[1748956127400,0.30039953,665.78,664.4,1.13184335]
[1748956127600,0.30039953,665.78,664.41,1.13184335]
[1748956127798,0.30039953,665.78,664.36,1.11976362]
[1748956127999,0.30039953,665.78,664.37,1.13183028]
[1748956128201,0.30039953,665.78,664.38,1.13183028]
[1748956128403,0.30039953,665.78,664.36,1.11976362]
[1748956128605,0.30039953,665.78,664.37,1.13182232]
[1748956128806,0.30039953,665.78,664.38,1.13182232]
[1748956129102,0.30039953,665.78,664.39,1.13182232]
[1748956129300,0.30039953,665.78,664.4,1.13182232]
[1748956129506,0.30039953,665.78,664.41,1.13182232]
[1748956129702,0.30039953,665.78,664.42,1.13182232]
[1748956129906,0.30039953,665.78,664.36,1.11976362]
[1748956130106,0.30039953,665.78,664.37,1.13175435]
[1748956130310,0.30039953,665.78,664.36,1.11976362]
[1748956130311,0.30039953,665.78,664.38,1.13175435]
[1748956130509,0.30039953,665.78,664.39,1.13175435]
[1748956130803,0.30039953,665.78,664.4,1.13175435]
[1748956131005,0.30039953,665.78,664.41,1.13175435]
[1748956131204,0.30039953,665.78,664.42,1.13170655]
[1748956131406,0.30039953,665.78,664.36,1.11976362]
[1748956131707,0.30039953,665.78,664.37,1.13178354]
[1748956131907,0.30039953,665.78,664.38,1.13178354]
[1748956132110,0.30039953,665.78,664.39,1.13178354]
[1748956132307,0.30039953,665.78,664.4,1.13178354]
[1748956132508,0.30039953,665.78,664.41,1.13178354]
[1748956132703,0.30039953,665.78,664.36,1.11976362]
[1748956132904,0.30039953,665.78,664.37,1.13196295]
[1748956133106,0.30039953,665.78,664.38,1.13196295]
[1748956133306,0.30039953,665.78,664.39,1.13196295]
[1748956133507,0.30039953,665.78,664.4,1.13196295]
[1748956133708,0.30039953,665.78,664.41,1.13196295]
[1748956134006,0.30039953,665.78,664.36,1.11976362]
[1748956134207,0.30039953,665.78,664.37,1.13192639]
[1748956134402,0.30039953,665.78,664.38,1.13192639]
[1748956134603,0.30039953,665.78,664.39,1.13192639]
[1748956134802,0.30039953,665.78,664.36,1.11976362]
[1748956135006,0.30039953,665.78,664.37,1.13195848]
[1748956135207,0.30039953,665.78,664.38,1.13195848]
[1748956135408,0.30039953,665.78,664.39,1.13195848]
[1748956135606,0.30039953,665.78,664.4,1.13191187]
[1748956135809,0.30039953,665.78,664.36,1.11976362]
[1748956136008,0.30039953,665.78,664.37,1.1319184]
[1748956136208,0.30039953,665.78,664.38,1.1319184]
[1748956136407,0.30039953,665.78,664.36,1.11976362]
[1748956136710,0.30039953,665.78,664.37,1.13187682]
[1748956136909,0.30039953,665.78,664.38,1.13187682]
[1748956137109,0.30039953,665.78,664.39,1.13187682]
[1748956137306,0.30039953,665.78,664.36,1.11976362]
[1748956137511,0.30039953,665.78,664.37,1.13161304]
[1748956137713,0.30039953,665.78,664.38,1.13161304]
[1748956137910,0.30039953,665.78,664.39,1.13161304]
[1748956138112,0.30039953,665.78,664.36,1.11976362]
[1748956138309,0.30039953,665.78,664.37,1.13155442]
[1748956138512,0.30039953,665.78,664.38,1.13155442]
[1748956138708,0.30039953,665.78,664.36,1.11976362]
[1748956138709,0.30039953,665.78,664.39,1.13155442]
[1748956139008,0.30039953,665.78,664.4,1.13155442]
[1748956139213,0.30039953,665.78,664.36,1.11976362]
[1748956139413,0.30039953,665.78,664.37,1.13145442]
[1748956139620,0.30039953,665.78,664.36,1.11976362]
[1748956139621,0.30039953,665.78,664.38,1.13145442]
[1748956139916,0.30039953,665.78,664.39,1.13145442]
[1748956140108,0.30039953,665.78,664.4,1.13145442]
[1748956140313,0.30039953,665.78,664.36,1.11976362]
[1748956140611,0.30039953,665.78,664.37,1.13157942]
[1748956140814,0.30039953,665.78,664.38,1.13157942]
[1748956141114,0.30039953,665.78,664.39,1.13157942]
[1748956141309,0.30039953,665.78,664.4,1.13157942]
[1748956141514,0.30039953,665.78,664.37,0.47592391]
[1748956141713,0.30039953,665.78,664.38,1.60746444]
[1748956141911,0.30039953,665.78,664.39,1.13154053]
[1748956142114,0.30039953,665.78,664.4,1.13154053]
[1748956142317,0.30039953,665.78,664.38,0.47592391]
[1748956142515,0.30039953,665.78,664.4,0.47592391]
[1748956142712,0.30039953,665.78,664.41,1.60747884]
[1748956142913,0.30039953,665.78,664.36,1.11976362]
[1748956142914,0.30039953,665.78,664.42,1.13148016]
[1748956143116,0.30039953,665.78,664.42,0.47592391]
[1748956143323,0.30039953,665.78,664.4,0.47592391]
[1748956143517,0.30039953,665.78,664.41,1.13170358]
[1748956143815,0.30039953,665.78,664.39,0.47592391]
[1748956144013,0.30039953,665.78,664.4,1.13169761]
[1748956144218,0.30039953,665.78,664.41,1.60762152]
[1748956144526,0.30039953,665.78,664.42,1.13169761]
[1748956144719,0.30039953,665.78,664.41,0.47592391]
[1748956144919,0.30039953,665.78,664.42,1.13168538]
[1748956145223,0.30039953,665.78,664.36,1.11976362]
[1748956145224,0.30039953,665.78,664.4,0.47592391]
[1748956145418,0.30039953,665.78,664.47,0.47592391]
[1748956146222,0.30039953,665.78,664.5,0.47592391]
[1748956146423,0.30039953,665.78,664.49,0.47592391]
[1748956147317,0.30039953,665.78,664.53,0.47592391]
[1748956147519,0.30039953,665.78,664.54,0.47592391]
[1748956148120,0.30039953,665.78,664.58,0.47592391]
[1748956148326,3.7455765,665.76,664.58,0.47592391]
[1748956148624,3.7455765,665.76,664.38,0.47713382]
[1748956148625,0.30041306,665.75,664.57,0.47592391]
[1748956149123,0.30041306,665.75,664.56,0.47592391]
[1748956149323,0.30041306,665.75,664.36,1.11976362]
[1748956149324,4.04598956,665.75,664.59,0.47592391]
[1748956149822,3.7455765,665.72,664.59,0.47592391]
[1748956150019,3.7455765,665.72,664.6,0.47592391]
[1748956150223,3.7455765,665.72,664.36,1.11976362]
[1748956150224,3.7455765,665.72,664.59,0.47592391]
[1748956150425,3.7455765,665.72,664.36,1.11976362]
[1748956150426,3.7455765,665.72,664.66,0.47592391]
[1748956150625,0.30041306,665.75,664.64,0.47592391]
[1748956150626,3.7455765,665.67,664.64,0.47592391]
[1748956150919,3.7455765,665.66,664.63,0.47592391]
[1748956151325,3.7455765,665.66,664.61,0.47592391]
[1748956152628,3.7455765,665.65,664.59,0.47592391]
[1748956152828,3.7455765,665.64,664.61,0.47592391]
[1748956153129,3.7455765,665.64,664.65,0.47592391]
[1748956153328,3.7455765,665.6,664.64,0.47592391]
[1748956153524,3.7455765,665.6,664.47,0.47713382]
[1748956153525,3.7455765,665.6,664.62,0.47592391]
[1748956154329,3.7455765,665.6,664.61,0.47592391]
[1748956154530,3.7455765,665.6,664.58,0.47592391]
[1748956154827,3.7455765,665.63,664.52,0.47592391]
[1748956155729,3.7455765,665.62,664.52,0.47592391]
[1748956156131,3.7455765,665.62,664.53,0.47592391]
[1748956156633,3.7455765,665.61,664.53,0.47592391]
[1748956157434,3.7455765,665.65,664.53,0.47592391]
[1748956158046,3.7455765,665.58,664.59,0.47592391]
[1748956158436,0.30041306,665.75,664.59,0.47592391]
[1748956158437,3.7455765,665.6,664.59,0.47592391]
[1748956159240,3.7455765,665.6,664.41,0.47592391]
[1748956159435,3.7455765,665.73,664.42,0.47592391]
[1748956159637,4.04599859,665.73,664.42,0.47592391]
[1748956159842,3.7455765,665.7,664.42,0.47592391]
[1748956160034,3.7455765,665.7,664.44,0.47592391]
[1748956160738,3.7455765,665.71,664.43,0.47592391]
[1748956161536,3.7455765,665.71,664.36,1.11976362]
[1748956161537,3.7455765,665.71,664.44,1.13471784]
[1748956161737,0.30042209,665.73,664.36,1.11976362]
[1748956162041,0.30042209,665.73,664.37,1.13471788]
[1748956162235,0.30042209,665.73,664.38,1.13471788]
[1748956162434,0.30042209,665.73,664.39,1.13471788]
[1748956162635,0.30042209,665.73,664.4,1.13471788]
[1748956162832,0.30042209,665.73,664.41,1.13471788]
[1748956163134,0.30042209,665.73,664.36,1.11976362]
[1748956163338,0.30042209,665.73,664.37,1.13507663]
[1748956163539,0.30042209,665.73,664.38,1.13507663]
[1748956163840,0.30042209,665.73,664.39,1.13507663]
[1748956164041,0.30042209,665.73,664.4,1.13507663]
[1748956164342,0.30042209,665.73,664.41,1.13507663]
[1748956164534,0.30042209,665.73,664.42,1.13507663]
[1748956164843,0.30042209,665.73,664.43,1.13507663]
[1748956165036,0.30042209,665.73,664.36,1.11976362]
[1748956165037,0.30042209,665.73,664.44,1.13507663]
[1748956165239,0.30042209,665.73,664.45,1.13507663]
[1748956165440,0.30042209,665.73,664.46,1.13507663]
[1748956165637,0.30042209,665.73,664.47,1.13507663]
[1748956165834,0.30042209,665.73,664.36,1.11976362]
[1748956165835,0.30042209,665.73,664.48,1.13507663]
[1748956166034,0.30042209,665.73,664.49,1.13507663]
[1748956166238,0.30042209,665.73,664.5,1.13507663]
[1748956166436,0.30042209,665.73,664.51,1.13507663]
[1748956166738,0.30042209,665.73,664.52,1.13507663]
[1748956166939,0.30042209,665.73,664.53,1.13507663]
[1748956167140,0.30042209,665.73,664.36,1.11976362]
[1748956167141,0.30042209,665.73,664.54,1.13507663]
[1748956167335,0.30042209,665.73,664.44,0.47592391]
[1748956167541,3.7455765,665.61,664.45,1.13693302]
[1748956167737,3.7455765,665.61,664.46,1.13693302]
[1748956167939,3.7455765,665.61,664.47,1.13693302]
[1748956168148,3.7455765,665.61,664.36,1.11976362]
[1748956168149,3.7455765,665.68,664.48,1.13693302]
[1748956168343,3.7455765,665.68,664.49,1.13693302]
[1748956168542,3.7455765,665.68,664.5,1.13693302]
[1748956168742,3.7455765,665.68,664.51,1.13693302]
[1748956168943,3.7455765,665.65,664.36,1.11976362]
[1748956169144,3.7455765,665.65,664.37,1.11331256]
[1748956169346,3.7455765,665.63,664.38,1.11331256]
[1748956169645,3.7455765,665.63,664.39,1.11331256]
[1748956169944,3.7455765,665.63,664.4,1.11331256]
[1748956170243,3.7455765,665.62,664.41,1.11331256]
[1748956170441,3.7455765,665.62,664.42,1.11331256]
[1748956170642,3.7455765,665.62,664.36,1.59568753]
[1748956170643,0.30042209,665.73,664.43,1.11331256]
[1748956170839,0.30042209,665.73,664.44,1.11331256]
[1748956171038,0.30042209,665.73,664.45,1.11331256]
[1748956171238,0.30042209,665.73,664.36,1.11976362]
[1748956171441,0.30042209,665.73,664.37,1.11193744]
[1748956171644,0.30042209,665.73,664.38,1.11193744]
[1748956171842,0.30042209,665.73,664.39,1.11193744]
[1748956172042,0.30042209,665.73,664.4,1.11193744]
[1748956172244,0.30042209,665.73,664.41,1.11200631]
[1748956172439,0.30042209,665.73,664.42,1.11200631]
[1748956172744,0.30042209,665.73,664.43,1.11200631]
[1748956172943,0.30042209,665.73,664.44,1.11200631]
[1748956173139,0.30042209,665.73,664.36,1.11976362]
[1748956173140,0.30042209,665.73,664.45,1.11200631]
[1748956173345,0.30042209,665.73,664.46,1.11200631]
[1748956173547,0.30042209,665.73,664.47,1.11200631]
[1748956173845,0.30042209,665.73,664.48,1.11210237]
[1748956174046,0.30042209,665.73,664.49,1.11210237]
[1748956174247,0.30042209,665.73,664.5,1.11210237]
[1748956174448,0.30042209,665.73,664.51,1.11210237]
[1748956174648,0.30042209,665.73,664.52,1.11210237]
[1748956174947,0.30042209,665.73,664.36,1.11976362]
[1748956175147,0.30042209,665.73,664.37,1.11217569]
[1748956175348,0.30042209,665.73,664.38,1.11217569]
[1748956175549,0.30042209,665.73,664.39,1.11226251]
[1748956175743,0.30042209,665.73,664.4,1.11226251]
[1748956175952,0.30042209,665.73,664.41,1.11226251]
[1748956176249,0.30042209,665.73,664.42,1.11226251]
[1748956176449,0.30042209,665.73,664.43,1.11226251]
[1748956176649,0.30042209,665.73,664.44,1.11226251]
[1748956176848,0.30042209,665.73,664.45,1.11226251]
[1748956177051,0.30042209,665.73,664.46,1.11226251]
[1748956177249,0.30042209,665.73,664.47,1.11226251]
[1748956177446,0.30042209,665.73,664.48,1.11226251]
[1748956177645,0.30042209,665.73,664.49,1.11226251]
[1748956177843,0.30042209,665.73,664.36,1.11976362]
[1748956178043,0.30042209,665.73,664.37,1.11229778]
[1748956178243,0.30042209,665.73,664.38,1.11229778]
[1748956178442,0.30042209,665.73,664.39,1.11229778]
[1748956178646,0.30042209,665.73,664.4,1.11229778]
[1748956178846,0.30042209,665.73,664.41,1.11229778]
[1748956179042,4.04599859,665.73,664.42,1.11229778]
[1748956179248,4.04599859,665.73,664.36,1.11976362]
[1748956179249,4.04599859,665.73,664.43,1.11229778]
[1748956179450,4.04599859,665.73,664.44,1.11229898]
[1748956179745,4.04599859,665.73,664.45,1.11229898]
[1748956179946,4.04599859,665.73,664.46,1.11229898]
[1748956180151,4.04599859,665.73,664.47,1.11229898]
[1748956180446,4.04599859,665.73,664.36,1.11976362]
[1748956180651,4.04599859,665.73,664.37,1.11241379]
[1748956180652,3.7455765,665.66,664.37,1.11241379]
[1748956180945,3.7455765,665.66,664.36,1.11976362]
[1748956180946,5.24380711,665.37,664.36,1.11976362]
[1748956181246,3.7455765,665.15,664.37,0.47592391]
[1748956181446,3.7455765,665.15,664.36,1.11976362]
[1748956181447,3.7455765,665.1,664.36,1.11976362]
[1748956181849,3.7455765,665.2,664.36,1.11976362]
[1748956182444,3.7455765,665.27,664.36,1.11976362]
[1748956182850,3.7455765,665.3,664.36,1.11976362]
[1748956183351,3.7455765,665.32,664.36,1.11976362]
[1748956184250,3.7455765,665.34,664.36,1.11976362]
[1748956185550,3.7455765,665.36,664.36,1.11976362]
[1748956186454,3.7455765,665.37,664.36,1.11976362]
[1748956187356,3.7455765,665.38,664.36,1.11976362]
[1748956187852,3.7455765,665.32,664.36,1.11976362]
[1748956188355,3.7455765,665.33,664.36,1.11976362]
[1748956188757,3.7455765,665.31,664.36,1.11976362]
[1748956189157,3.7455765,665.33,664.36,1.11976362]
[1748956190657,3.7455765,665.35,664.36,1.11976362]
[1748956191159,5.24380711,665.61,664.36,1.11976362]
[1748956191160,3.7455765,665.34,664.36,1.11976362]
[1748956191555,3.7455765,665.29,664.36,1.11976362]
[1748956192462,3.7455765,665.15,664.36,1.11976362]
[1748956192955,0.30045819,665.65,664.36,1.11976362]
[1748956192956,3.7455765,665.16,664.36,1.11976362]
[1748956193358,5.24380711,665.37,664.36,1.11976362]
[1748956193359,3.7455765,665.18,664.36,1.11976362]
[1748956193754,3.7455765,665.2,664.36,1.11976362]
[1748956194355,5.24380711,665.42,664.36,1.11976362]
[1748956194559,0.30056656,665.41,664.36,1.11976362]
[1748956201363,0.30056656,665.41,664.36,1.59586026]
[1748956201566,0.30056656,665.41,664.37,0.47609664]
[1748956201765,0.30056656,665.41,664.36,1.11976362]
[1748956201766,0.30056656,665.41,664.36,1.59586026]
[1748956202163,0.30056656,665.41,664.39,0.47609664]
[1748956202363,0.30056656,665.41,664.4,0.47609664]
[1748956202564,0.30056656,665.41,664.41,0.47609664]
[1748956203165,0.30056656,665.41,664.42,0.47609664]
[1748956203368,0.30056656,665.41,664.44,0.47609664]
[1748956203967,0.30056656,665.41,664.49,0.47609664]
[1748956204164,0.30056656,665.41,664.52,0.47609664]
[1748956204365,0.30056656,665.41,664.47,0.47609664]
[1748956205162,0.30056656,665.41,664.5,0.47609664]
[1748956206368,0.30056656,665.41,664.53,0.47609664]
[1748956207163,0.30056656,665.41,664.56,0.47609664]
[1748956208168,0.30056656,665.41,664.36,1.11976362]
[1748956208169,0.30056656,665.41,664.54,0.47609664]
[1748956208361,0.30056656,665.41,664.55,0.47609664]
[1748956208565,0.30056656,665.41,664.56,0.47609664]
[1748956209068,0.30056656,665.41,664.68,0.47609664]
[1748956209262,0.30056656,665.41,664.73,0.07848277]
[1748956209465,0.30056656,665.41,664.36,1.11976362]
[1748956211472,0.30056656,665.41,664.43,0.47592391]
[1748956211969,0.30056656,665.41,664.36,1.11976362]
[1748956211970,0.30056656,665.41,664.42,0.47592391]
[1748956212165,0.30056656,665.41,664.45,0.47592391]
[1748956212369,0.30056656,665.41,664.36,1.11976362]
[1748956212370,0.30056656,665.41,664.46,0.47592391]
[1748956213164,0.30056656,665.41,664.36,1.11976362]
[1748956213165,0.30056656,665.41,664.51,0.47592391]
[1748956213568,0.30056656,665.41,664.52,0.47592391]
[1748956213963,0.30056656,665.41,664.36,1.11976362]
[1748956213964,0.30056656,665.41,664.51,0.47592391]
[1748956214170,0.30056656,665.41,664.52,0.47592391]
[1748956214368,0.30056656,665.41,664.57,0.47592391]
[1748956214672,0.30056656,665.41,664.6,0.47592391]
[1748956215372,0.30056656,665.41,664.56,0.47592391]
[1748956215566,0.30056656,665.41,664.58,0.47592391]
[1748956216170,0.30056656,665.41,664.64,0.47592391]
[1748956216366,0.30056656,665.41,664.63,0.47592391]
[1748956216666,0.30056656,665.41,664.36,1.11976362]
[1748956216667,0.30056656,665.41,664.65,0.47592391]
[1748956217272,0.30056656,665.41,664.64,0.47592391]
[1748956217671,0.30056656,665.41,664.67,0.47592391]
[1748956218264,0.30056656,665.41,664.59,0.47592391]
[1748956218567,0.30056656,665.41,664.61,0.47592391]
[1748956218770,0.30056656,665.41,664.59,0.47592391]
[1748956219167,0.30056656,665.41,664.36,1.11976362]
[1748956219168,0.30056656,665.41,664.58,0.47592391]
[1748956219368,0.30056656,665.41,664.56,0.47592391]
[1748956219973,0.30056656,665.41,664.57,0.47592391]
[1748956220172,0.30056656,665.41,664.55,0.47592391]
[1748956220372,0.30056656,665.41,664.56,0.47592391]
[1748956220573,0.30056656,665.41,664.55,0.47592391]
[1748956220773,0.30056656,665.41,664.57,0.47592391]
[1748956220976,0.30056656,665.41,664.37,0.47592391]
[1748956221275,0.30056656,665.41,664.84,0.47592391]
[1748956221468,0.30056656,665.41,664.84,0.08371131]
[1748956221870,0.30056656,665.41,664.66,0.47713382]
[1748956222077,0.30056656,665.41,664.74,0.47713382]
[1748956222374,0.30056656,665.41,664.75,0.56073404]
[1748956222574,0.30056656,665.41,664.76,0.56073404]
[1748956222775,0.30056656,665.41,664.77,0.56073404]
[1748956222969,0.30056656,665.41,664.78,0.56073404]
[1748956223974,0.30056656,665.41,664.62,0.47842731]
[1748956224173,0.30056656,665.41,664.63,0.55860216]
[1748956224374,0.30056656,665.41,664.64,0.55860216]
[1748956224574,0.30056656,665.41,664.65,0.55860216]
[1748956224769,0.30056656,665.41,664.66,0.55860216]
[1748956224968,0.30056656,665.41,664.67,0.55860216]